fUSD/lending_fUSD_20240213
["ID","MTS","AMOUNT","RATE_DAILY","PERIOD"]
[313932313,1707837463189,-3483.17881115,0.0004,30]
[313932314,1707837463213,-17070.30316467,0.0004,30]
[313932315,1707837463238,-150.0,0.0004,30]
[313932316,1707837463260,-34800.53827389,0.0004,45]
[313932317,1707837463287,-42414.77297407,0.0004,30]
[313932318,1707837463310,-210.0,0.000401,30]
[313932319,1707837463334,-1000.0,0.000401,30]
[313932320,1707837463357,-1000.0,0.000402,30]
[313932321,1707837463382,-210.0,0.000403,30]
[313932322,1707837463417,-1000.0,0.000403,30]
[313932323,1707837463451,-1208.0,0.00040329,30]
[313932324,1707837463484,-150.0,0.00040362,120]
[313932325,1707837463517,-1000.0,0.000404,30]
[313932326,1707837463549,-210.0,0.000405,30]
[313932327,1707837463581,-1000.0,0.000405,30]
[313932328,1707837463611,-1000.0,0.000406,30]
[313932329,1707837463646,-210.0,0.000407,30]
[313932330,1707837463676,-1000.0,0.000407,30]
[313932331,1707837463708,-1000.0,0.000408,43]
[313932332,1707837463742,-300.0,0.000408,44]
[313932333,1707837463775,-150.0,0.000408,30]
[313932334,1707837463804,-150.0,0.00040892,120]
[313932335,1707837463835,-210.0,0.000409,30]
[313932336,1707837463865,-49117.5506844,0.000409,30]
[313932337,1707837463893,-1000.0,0.000409,30]
[313932338,1707837463921,-168.41602848,0.00040994,30]
[313932339,1707837463950,-300.0,0.00041,41]
[313932340,1707837463979,-10000.0,0.00041,30]
[313932341,1707837464006,-150.0,0.00041,105]
[313932342,1707837464036,-1872.0,0.00041,30]
[313932343,1707837464064,-5000.0,0.00041,30]
[313932344,1707837464092,-50000.0,0.00041,30]
[313932345,1707837464120,-2256.83,0.00041,30]
[313932346,1707837464150,-7414.01588157,0.00041,120]
[313932347,1707837464179,-2000.0,0.00041,120]
[313932348,1707837464210,-1364.0,0.00041,120]
[313932349,1707837464240,-2081.20287415,0.00041,30]
[313932350,1707837464267,-525981.48404933,0.00041,30]
[313932351,1707837464294,-339.0,0.00041,30]
[313932352,1707837464322,-57000.0,0.00041,60]
[313932353,1707837464350,-150.0,0.00041014,30]
[313932354,1707837464378,-1000.0,0.00041095,30]
[313932355,1707837464405,-1000.0,0.00041095,30]
[313932356,1707837464434,-1000.0,0.00041095,30]
[313932357,1707837464463,-1000.0,0.00041095,30]
[313932358,1707837464490,-1000.0,0.00041095,30]
[313932359,1707837464520,-1000.0,0.00041095,30]
[313932360,1707837464547,-1000.0,0.00041095,30]
[313932361,1707837464576,-1000.0,0.00041095,30]
[313932362,1707837464604,-1000.0,0.00041095,30]
[313932363,1707837464633,-900.81021884,0.00041095,30]
[313932364,1707837464663,-581.31685711,0.00041095,120]
[313932365,1707837464695,-500.0,0.00041095,30]
[313932366,1707837464912,-506.60251108,0.00041095,30]
[313932367,1707837464935,-502.49752979,0.00041095,30]
[313932368,1707837464958,-500.0,0.00041095,30]
[313932369,1707837464980,-500.0,0.00041095,30]
[313932370,1707837465002,-500.0,0.00041095,30]
[313932371,1707837465025,-500.0,0.00041095,30]
[313932372,1707837465048,-500.0,0.00041095,30]
[313932373,1707837465069,-500.0,0.00041095,30]
[313932374,1707837465092,-500.0,0.00041095,30]
[313932375,1707837465114,-500.0,0.00041095,30]
[313932376,1707837465135,-500.0,0.00041095,30]
[313932377,1707837465161,-372.54087159,0.00041095,30]
[313932378,1707837465185,-1557.61350904,0.00041096,120]
[313932379,1707837465209,-210.0,0.000411,30]
[313932380,1707837465232,-162.19605,0.00041227,30]
[313932381,1707837465255,-152.193991,0.00041227,30]
[313932382,1707837465281,-210.0,0.000413,30]
[313932383,1707837465304,-150.0,0.000413,31]
[313932384,1707837465327,-505.45643831,0.0004135,60]
[313932385,1707837465349,-963.59,0.0004137,120]
[313932386,1707837465372,-171.0,0.0004147,52]
[313932387,1707837465395,-210.0,0.000415,30]
[313932388,1707837465418,-300.0,0.000415,41]
[313932389,1707837465441,-4165.0,0.00041595,30]
[313932390,1707837465464,-4165.0,0.00041595,60]
[313932391,1707837465487,-580369.78446257,0.0004169,30]
[313932392,1707837471263,-151.0,0.00037595,30]
[313932393,1707837471324,-372.57319662,0.00039999,31]
[313932394,1707837471359,-1774197.65553743,0.0004169,30]
[313932395,1707837471383,-210.0,0.000417,30]
[313932396,1707837471407,-4477.0,0.000417,87]
[313932397,1707837471431,-499.07241461,0.000418,30]
[313932398,1707837471454,-1000.0,0.000418,45]
[313932399,1707837471478,-300.0,0.000418,48]
[313932400,1707837471502,-150.0,0.000418,31]
[313932401,1707837471527,-210.0,0.000419,30]
[313932402,1707837471549,-524.78276506,0.000419,30]
[313932403,1707837471572,-70486.59489312,0.000419,60]
[313932404,1707837471594,-90000.0,0.000419,30]
[313932405,1707837471617,-90000.0,0.000419,30]
[313932406,1707837471640,-150.5,0.0004197,61]
[313932407,1707837471663,-150.5,0.0004197,61]
[313932408,1707837471692,-250.0,0.0004197,61]
[313932409,1707837471716,-250.0,0.0004197,61]
[313932410,1707837471739,-277.22,0.0004197,61]
[313932411,1707837471761,-255.94,0.0004197,61]
[313932412,1707837471788,-150.5,0.0004197,61]
[313932413,1707837471810,-171.1,0.0004197,61]
[313932414,1707837471831,-1843.0,0.0004197,61]
[313932415,1707837471854,-1843.0,0.0004197,61]
[313932416,1707837471877,-395.0,0.0004197,61]
[313932417,1707837471901,-395.0,0.0004197,61]
[313932418,1707837471924,-415367.17935801,0.0004198,30]
[313932419,1707837471949,-150.5,0.0004198,61]
[313932420,1707837471972,-150.5,0.0004198,61]
[313932421,1707837471995,-150.5,0.0004198,60]
[313932422,1707837472019,-150.5,0.0004198,61]
[313932423,1707837472046,-150.5,0.0004198,61]
[313932424,1707837472068,-150.5,0.0004198,61]
[313932425,1707837472091,-250.0,0.0004198,61]
[313932426,1707837472114,-250.0,0.0004198,61]
[313932427,1707837472142,-250.0,0.0004198,61]
[313932428,1707837472167,-252.07,0.0004198,61]
[313932429,1707837472192,-215.56,0.0004198,61]
[313932430,1707837472214,-204.78,0.0004198,61]
[313932431,1707837472236,-155.59,0.0004198,61]
[313932432,1707837472258,-150.5,0.0004198,61]
[313932433,1707837472282,-1843.0,0.0004198,61]
[313932434,1707837472305,-300.8,0.0004198,61]
[313932435,1707837472328,-1843.0,0.0004198,61]
[313932436,1707837472352,-1843.0,0.0004198,61]
[313932437,1707837472376,-1843.61,0.0004198,61]
[313932438,1707837472398,-395.0,0.0004198,61]
[313932439,1707837472420,-395.0,0.0004198,61]
[313932440,1707837472443,-395.0,0.0004198,61]
[313932441,1707837472466,-397.77,0.0004198,61]
[313932442,1707837472488,-150.5,0.0004199,61]
[313932443,1707837472513,-150.5,0.0004199,61]
[313932444,1707837472538,-150.5,0.0004199,61]
[313932445,1707837472562,-150.5,0.0004199,60]
[313932446,1707837472584,-150.5,0.0004199,61]
[313932447,1707837472607,-150.5,0.0004199,61]
[313932448,1707837472630,-150.5,0.0004199,61]
[313932449,1707837472651,-150.5,0.0004199,61]
[313932450,1707837472673,-150.5,0.0004199,61]
[313932451,1707837472696,-250.0,0.0004199,61]
[313932452,1707837472718,-188.0,0.0004199,30]
[313932453,1707837472740,-250.0,0.0004199,61]
[313932454,1707837472764,-250.0,0.0004199,61]
[313932455,1707837472788,-250.0,0.0004199,61]
[313932456,1707837472810,-150.5,0.0004199,61]
[313932457,1707837472832,-10179.0,0.0004199,60]
[313932458,1707837472853,-1843.0,0.0004199,61]
[313932459,1707837472876,-150.5,0.0004199,61]
[313932460,1707837472902,-153.89,0.0004199,61]
[313932461,1707837472923,-1843.0,0.0004199,61]
[313932462,1707837472947,-162.19,0.0004199,61]
[313932463,1707837472971,-1843.0,0.0004199,61]
[313932464,1707837472993,-1843.0,0.0004199,61]
[313932465,1707837473015,-395.0,0.0004199,61]
[313932466,1707837473038,-395.0,0.0004199,61]
[313932467,1707837473060,-395.0,0.0004199,61]
[313932468,1707837473083,-395.0,0.0004199,61]
[313932469,1707837473106,-168.41602848,0.00041994,30]
[313932470,1707837473130,-300.0,0.00042,42]
[313932471,1707837473155,-4891.25645109,0.00042,30]
[313932472,1707837473178,-5000.000001,0.00042,30]
[313932473,1707837473201,-8506.35830303,0.00042,30]
[313932474,1707837473225,-150.0,0.00042,115]
[313932475,1707837473249,-10004.0,0.00042,30]
[313932476,1707837473273,-23290.0,0.00042,120]
[313932477,1707837473296,-10000.0,0.00042,60]
[313932478,1707837473319,-20000.0,0.00042,60]
[313932479,1707837473342,-20000.0,0.00042,60]
[313932480,1707837473364,-20000.0,0.00042,60]
[313932481,1707837473386,-20000.0,0.00042,60]
[313932482,1707837473409,-20000.0,0.00042,60]
[313932483,1707837473431,-20000.0,0.00042,60]
[313932484,1707837473452,-20000.0,0.00042,60]
[313932485,1707837473473,-20000.0,0.00042,60]
[313932486,1707837473629,-20000.0,0.00042,60]
[313932487,1707837473653,-20000.0,0.00042,60]
[313932488,1707837473678,-20000.0,0.00042,60]
[313932489,1707837473701,-20000.0,0.00042,60]
[313932490,1707837473724,-20000.0,0.00042,60]
[313932491,1707837473748,-20000.0,0.00042,60]
[313932492,1707837473771,-375.79079586,0.00042,60]
[313932493,1707837473796,-436.12323024,0.00042,30]
[313932494,1707837473818,-1522.65273018,0.00042,30]
[313932495,1707837473840,-4500.0,0.00042,60]
[313932496,1707837473863,-77851.0,0.00042,30]
[313932497,1707837473887,-30000.0,0.00042,120]
[313932498,1707837473909,-2000.0,0.00042,120]
[313932499,1707837473931,-13000.0,0.00042,37]
[313932500,1707837473954,-4389.0,0.00042,120]
[313932501,1707837473977,-9173.05833201,0.00042,30]
[313932502,1707837473999,-948.0,0.00042,30]
[313932503,1707837474024,-5000.0,0.00042,120]
[313932504,1707837474047,-5000.0,0.00042,120]
[313932505,1707837474069,-5000.0,0.00042,120]
[313932506,1707837474091,-10000.0,0.00042,120]
[313932507,1707837474114,-5800.0,0.00042,120]
[313932508,1707837474137,-5000.0,0.00042,120]
[313932509,1707837474160,-10000.0,0.00042,120]
[313932510,1707837474182,-10000.0,0.00042,120]
[313932511,1707837474204,-10000.0,0.00042,120]
[313932512,1707837474227,-5000.0,0.00042,120]
[313932513,1707837474250,-10000.0,0.00042,120]
[313932514,1707837474272,-10000.0,0.00042,120]
[313932515,1707837474296,-10000.0,0.00042,120]
[313932516,1707837474324,-11200.0,0.00042,45]
[313932517,1707837474348,-559.0,0.00042,30]
[313932518,1707837474371,-5000.53784746,0.00042,120]
[313932519,1707837474394,-339.0,0.00042,30]
[313932520,1707837474418,-861.03578597,0.00042,120]
[313932521,1707837474442,-300.0,0.00042,43]
[313932522,1707837474466,-58000.0,0.00042,65]
[313932523,1707837474489,-552.55624497,0.00042,120]
[313932524,1707837474512,-15000.0,0.00042,120]
[313932525,1707837474537,-15000.0,0.00042,120]
[313932526,1707837474559,-15000.0,0.00042,120]
[313932527,1707837474581,-15000.0,0.00042,120]
[313932528,1707837474604,-15000.0,0.00042,120]
[313932529,1707837474626,-15000.0,0.00042,120]
[313932530,1707837474648,-15000.0,0.00042,120]
[313932531,1707837474670,-15000.0,0.00042,120]
[313932532,1707837474692,-15000.0,0.00042,120]
[313932533,1707837474714,-15000.0,0.00042,120]
[313932534,1707837474739,-10863.63,0.00042,120]
[313932535,1707837474763,-200.0,0.00042,49]
[313932536,1707837474789,-15000.0,0.00042,120]
[313932537,1707837474813,-15000.0,0.00042,120]
[313932538,1707837474836,-15000.0,0.00042,120]
[313932539,1707837474865,-15000.0,0.00042,120]
[313932540,1707837474887,-15000.0,0.00042,120]
[313932541,1707837474909,-24000.0,0.00042,120]
[313932542,1707837474931,-24000.0,0.00042,120]
[313932543,1707837474954,-15000.0,0.00042,120]
[313932544,1707837474977,-2000.0,0.00042,120]
[313932545,1707837474999,-15000.0,0.00042,120]
[313932546,1707837475022,-15000.0,0.00042,120]
[313932547,1707837475046,-150.0,0.00042028,30]
[313932548,1707837475068,-11962.88,0.00042038,120]
[313932549,1707837475090,-15000.0,0.00042038,120]
[313932550,1707837475112,-15000.0,0.00042038,120]
[313932551,1707837475348,-13437.04,0.00042038,120]
[313932552,1707837475373,-912.11,0.00042038,120]
[313932553,1707837475395,-15000.0,0.00042038,120]
[313932554,1707837475418,-15000.0,0.00042038,120]
[313932555,1707837475440,-15000.0,0.00042038,120]
[313932556,1707837475461,-220.63,0.00042038,120]
[313932557,1707837475483,-15000.0,0.00042038,120]
[313932558,1707837475505,-15000.0,0.00042038,120]
[313932559,1707837475530,-15000.0,0.00042038,120]
[313932560,1707837475553,-15000.0,0.00042038,120]
[313932561,1707837475574,-2798.22,0.00042038,120]
[313932562,1707837475597,-14999.98,0.00042038,120]
[313932563,1707837475620,-24000.0,0.0004206,120]
[313932564,1707837475643,-24000.0,0.0004206,120]
[313932565,1707837475666,-24000.0,0.0004206,120]
[313932566,1707837475688,-15000.0,0.00042075,120]
[313932567,1707837475712,-15000.0,0.00042075,120]
[313932568,1707837475735,-15000.0,0.00042075,120]
[313932569,1707837475759,-15000.0,0.00042075,120]
[313932570,1707837475782,-15000.0,0.00042075,120]
[313932571,1707837475804,-15000.0,0.00042075,120]
[313932572,1707837475826,-10242.22,0.00042075,120]
[313932573,1707837475851,-210.0,0.000421,30]
[313932574,1707837475873,-15000.0,0.00042113,120]
[313932575,1707837475896,-15000.0,0.00042113,120]
[313932576,1707837475918,-15000.0,0.00042113,120]
[313932577,1707837475940,-15000.0,0.00042113,120]
[313932578,1707837475962,-15000.0,0.00042113,120]
[313932579,1707837475984,-15000.0,0.00042113,120]
[313932580,1707837476006,-24000.0,0.0004212,120]
[313932581,1707837476030,-24000.0,0.0004212,120]
[313932582,1707837476052,-10530.4,0.0004212,120]
[313932583,1707837476075,-15000.0,0.0004215,120]
[313932584,1707837476098,-1099.22608486,0.0004215,120]
[313932585,1707837479888,-29761.02938605,0.00039,40]
[313932586,1707837479936,-150.0,0.00042,30]
[313932587,1707837479963,-3037.14,0.00042,120]
[313932588,1707837479986,-13900.77391514,0.0004215,120]
[313932589,1707837480009,-15000.0,0.0004215,120]
[313932590,1707837480035,-15000.0,0.0004215,120]
[313932591,1707837480059,-15000.0,0.0004215,120]
[313932592,1707837480082,-15000.0,0.0004215,120]
[313932593,1707837480105,-24000.0,0.0004218,120]
[313932594,1707837480129,-14999.98,0.00042188,120]
[313932595,1707837480155,-15000.0,0.00042188,120]
[313932596,1707837480184,-15000.0,0.00042188,120]
[313932597,1707837480208,-15000.0,0.00042188,120]
[313932598,1707837480233,-15000.0,0.00042188,120]
[313932599,1707837480258,-14536.88,0.00042188,120]
[313932600,1707837480285,-106795.17460365,0.000422,30]
[313932601,1707837480316,-15000.0,0.00042225,120]
[313932602,1707837480341,-15000.0,0.00042225,120]
[313932603,1707837480369,-15000.0,0.00042225,120]
[313932604,1707837480395,-15000.0,0.00042225,120]
[313932605,1707837480422,-24000.0,0.0004224,120]
[313932606,1707837480446,-24000.0,0.0004224,120]
[313932607,1707837480471,-15000.0,0.00042263,120]
[313932608,1707837480649,-15000.0,0.00042263,120]
[313932609,1707837480676,-15000.0,0.00042263,120]
[313932610,1707837480702,-210.0,0.000423,30]
[313932611,1707837480727,-45000.0,0.000423,120]
[313932612,1707837480753,-150.0,0.000423,32]
[313932613,1707837480776,-15000.0,0.000423,120]
[313932614,1707837480806,-15000.0,0.000423,120]
[313932615,1707837480829,-15000.0,0.000423,120]
[313932616,1707837480852,-24000.0,0.000423,120]
[313932617,1707837480876,-24000.0,0.000423,120]
[313932618,1707837480901,-8204.53,0.00042338,120]
[313932619,1707837480926,-14850.0,0.00042338,120]
[313932620,1707837480951,-24000.0,0.0004236,120]
[313932621,1707837480975,-24000.0,0.0004236,120]
[313932622,1707837480999,-15000.0,0.00042375,120]
[313932623,1707837481024,-15000.0,0.00042413,120]
[313932624,1707837481051,-24000.0,0.0004242,120]
[313932625,1707837481074,-24000.0,0.0004242,120]
[313932626,1707837481098,-15000.0,0.0004245,120]
[313932627,1707837481123,-162.19605,0.00042476,30]
[313932628,1707837481156,-24000.0,0.0004248,120]
[313932629,1707837481182,-24000.0,0.0004248,120]
[313932630,1707837481207,-15000.0,0.00042488,120]
[313932631,1707837481238,-210.0,0.000425,30]
[313932632,1707837481264,-300.0,0.000425,42]
[313932633,1707837481292,-2007.95335122,0.000425,60]
[313932634,1707837481316,-10319.44189421,0.000425,30]
[313932635,1707837481340,-5000.0,0.000425,120]
[313932636,1707837481364,-5000.0,0.000425,120]
[313932637,1707837481389,-10000.0,0.000425,120]
[313932638,1707837481414,-5000.0,0.0004252,30]
[313932639,1707837481439,-5000.0,0.0004252,30]
[313932640,1707837481464,-5000.0,0.0004252,30]
[313932641,1707837481489,-5000.0,0.0004252,30]
[313932642,1707837481513,-5000.0,0.0004252,30]
[313932643,1707837481540,-6000.0,0.0004252,30]
[313932644,1707837481567,-9926.76,0.00042525,120]
[313932645,1707837481591,-24000.0,0.0004254,120]
[313932646,1707837481615,-24000.0,0.000426,120]
[313932647,1707837481641,-24000.0,0.0004266,120]
[313932648,1707837481666,-24000.0,0.0004266,120]
[313932649,1707837481690,-150.0,0.0004268,120]
[313932650,1707837481721,-210.0,0.000427,30]
[313932651,1707837481744,-1000.0,0.000427,30]
[313932652,1707837481767,-24000.0,0.0004272,120]
[313932653,1707837481792,-24000.0,0.0004272,120]
[313932654,1707837481814,-24000.0,0.0004278,120]
[313932655,1707837481836,-24000.0,0.0004278,120]
[313932656,1707837481862,-1000.0,0.000428,47]
[313932657,1707837481888,-300.0,0.000428,52]
[313932658,1707837481914,-5897.76216683,0.000428,60]
[313932659,1707837481941,-150.0,0.000428,32]
[313932660,1707837481965,-24000.0,0.0004284,120]
[313932661,1707837481991,-24000.0,0.0004284,120]
[313932662,1707837482014,-5000.0,0.00042876,31]
[313932663,1707837482039,-210.0,0.000429,30]
[313932664,1707837482062,-20000.0,0.000429,30]
[313932665,1707837482085,-1752.8524294,0.000429,30]
[313932666,1707837482110,-5000.0,0.000429,47]
[313932667,1707837482134,-1219.42382494,0.000429,30]
[313932668,1707837482156,-1224.2066368,0.000429,31]
[313932669,1707837482183,-90000.0,0.000429,30]
[313932670,1707837482205,-90000.0,0.000429,30]
[313932671,1707837482228,-24000.0,0.000429,120]
[313932672,1707837482251,-24000.0,0.000429,120]
[313932673,1707837482273,-594.68098956,0.000429,30]
[313932674,1707837482299,-594.68098955,0.000429,30]
[313932675,1707837482322,-594.68098955,0.000429,30]
[313932676,1707837482347,-594.68098955,0.000429,30]
[313932677,1707837482370,-594.68098955,0.000429,30]
[313932678,1707837482394,-594.68098955,0.000429,30]
[313932679,1707837482417,-594.68098955,0.000429,30]
[313932680,1707837482440,-594.68098955,0.000429,30]
[313932681,1707837482463,-594.68098955,0.000429,30]
[313932682,1707837482487,-24000.0,0.0004296,120]
[313932683,1707837482510,-24000.0,0.0004296,120]
[313932684,1707837482536,-168.41602848,0.00042994,30]
[313932685,1707837482559,-1000.0,0.00042999,120]
[313932686,1707837482583,-7095.33575344,0.00042999,60]
[313932687,1707837482606,-811.3788448,0.00043,30]
[313932688,1707837482628,-10000.0,0.00043,120]
[313932689,1707837482651,-10000.0,0.00043,120]
[313932690,1707837482675,-10000.0,0.00043,120]
[313932691,1707837482698,-10000.0,0.00043,120]
[313932692,1707837482720,-10000.0,0.00043,120]
[313932693,1707837482741,-10000.0,0.00043,120]
[313932694,1707837482764,-10000.0,0.00043,120]
[313932695,1707837482790,-10000.0,0.00043,120]
[313932696,1707837482813,-10000.0,0.00043,120]
[313932697,1707837482835,-7736.0,0.00043,40]
[313932698,1707837482858,-18353.0,0.00043,30]
[313932699,1707837482881,-19431.0,0.00043,30]
[313932700,1707837482905,-20000.0,0.00043,40]
[313932701,1707837482928,-2000.0,0.00043,120]
[313932702,1707837482952,-300.0,0.00043,43]
[313932703,1707837482975,-15000.0,0.00043,30]
[313932704,1707837482998,-269768.48548568,0.00043,30]
[313932705,1707837483021,-2000.0,0.00043,30]
[313932706,1707837483046,-2000.0,0.00043,30]
[313932707,1707837483070,-2387.919674,0.00043,30]
[313932708,1707837483095,-416.2453767,0.00043,60]
[313932709,1707837483242,-20000.0,0.00043,60]
[313932710,1707837483275,-20000.0,0.00043,90]
[313932711,1707837483303,-20000.0,0.00043,60]
[313932712,1707837483330,-20000.0,0.00043,90]
[313932713,1707837483353,-29579.19070502,0.00043,60]
[313932714,1707837483378,-150.0,0.00043,105]
[313932715,1707837483401,-109345.33530174,0.00043,30]
[313932716,1707837483426,-2000.0,0.00043,30]
[313932717,1707837483450,-75306.88764222,0.00043,30]
[313932718,1707837483475,-5000.0,0.00043,43]
[313932719,1707837483500,-509.15688186,0.00043,120]
[313932720,1707837483525,-7380.49171604,0.00043,120]
[313932721,1707837483550,-10000.0,0.00043,120]
[313932722,1707837483572,-3623.23,0.00043,100]
[313932723,1707837483596,-20000.0,0.00043,120]
[313932724,1707837483622,-21205.19,0.00043,120]
[313932725,1707837483650,-77952.94843378,0.00043,60]
[313932726,1707837483676,-50000.0,0.00043,120]
[313932727,1707837483701,-566.94929071,0.00043,120]
[313932728,1707837483725,-3000.0,0.00043,115]
[313932729,1707837483747,-30000.0,0.00043,120]
[313932730,1707837483780,-387.25122353,0.00043,60]
[313932731,1707837483809,-5032.0,0.00043,120]
[313932732,1707837483835,-50000.0,0.00043,30]
[313932733,1707837483859,-6643.34,0.00043,120]
[313932734,1707837483883,-63000.0,0.00043,70]
[313932735,1707837483908,-639.17087675,0.00043,120]
[313932736,1707837483933,-2631.72,0.00043,30]
[313932737,1707837483957,-2624.0,0.00043,30]
[313932738,1707837483981,-24000.0,0.0004302,120]
[313932739,1707837484006,-24000.0,0.0004302,120]
[313932740,1707837484030,-150.0,0.00043042,30]
[313932741,1707837484057,-24000.0,0.0004308,120]
[313932742,1707837484080,-24000.0,0.0004308,120]
[313932743,1707837484105,-210.0,0.000431,30]
[313932744,1707837484128,-2000.0,0.00043128,120]
[313932745,1707837484155,-2000.0,0.00043128,120]
[313932746,1707837484180,-669.83328697,0.00043128,120]
[313932747,1707837484203,-24000.0,0.0004314,120]
[313932748,1707837484226,-24000.0,0.0004314,120]
[313932749,1707837484250,-24000.0,0.000432,120]
[313932750,1707837484273,-171.0,0.000432,56]
[313932751,1707837484298,-10000.0,0.0004321,60]
[313932752,1707837484321,-24000.0,0.0004326,120]
[313932753,1707837484345,-33857.85797904,0.00043273,30]
[313932754,1707837484369,-256.26798365,0.00043276,30]
[313932755,1707837484393,-435.07305278,0.00043276,30]
[313932756,1707837484415,-1626.46911321,0.00043284,30]
[313932757,1707837484438,-435.07305278,0.00043286,30]
[313932758,1707837484461,-1144.96176878,0.0004329,30]
[313932759,1707837484485,-182.72024306,0.00043293,30]
[313932760,1707837484509,-582.01500002,0.00043293,30]
[313932761,1707837484533,-435.07305278,0.00043297,30]
[313932762,1707837484560,-158.88716788,0.00043298,30]
[313932763,1707837484585,-8525.44201239,0.00043299,30]
[313932764,1707837484608,-3409.39677437,0.000433,30]
[313932765,1707837484631,-210.0,0.000433,30]
[313932766,1707837484654,-223.58750295,0.000433,30]
[313932767,1707837484678,-150.0,0.000433,33]
[313932768,1707837484701,-12000.0,0.0004331,30]
[313932769,1707837484723,-182.72024306,0.00043317,30]
[313932770,1707837484746,-582.01500002,0.00043317,30]
[313932771,1707837484770,-250383.32716181,0.0004332,30]
[313932772,1707837484797,-24000.0,0.0004332,120]
[313932773,1707837484820,-250383.32716181,0.00043321,30]
[313932774,1707837484843,-256.26798365,0.00043322,30]
[313932775,1707837484866,-3409.39677437,0.00043323,30]
[313932776,1707837484890,-8525.44201239,0.00043333,30]
[313932777,1707837484913,-158.88716788,0.00043337,30]
[313932778,1707837484936,-3409.39677437,0.00043341,30]
[313932779,1707837484959,-33857.85797904,0.00043349,30]
[313932780,1707837484983,-8525.44201239,0.00043358,30]
[313932781,1707837485009,-256.26798365,0.00043359,30]
[313932782,1707837485040,-847.05674204,0.00043361,30]
[313932783,1707837485065,-847.05674204,0.00043362,30]
[313932784,1707837485089,-1144.96176878,0.00043366,30]
[313932785,1707837485113,-158.88716788,0.00043366,30]
[313932786,1707837485138,-1626.46911321,0.00043371,30]
[313932787,1707837485162,-847.05674204,0.00043374,30]
[313932788,1707837485188,-1626.46911321,0.00043376,30]
[313932789,1707837485211,-182.72024306,0.00043377,30]
[313932790,1707837485235,-24000.0,0.0004338,120]
[313932791,1707837485260,-582.01500002,0.00043384,30]
[313932792,1707837485284,-33857.85797904,0.00043387,30]
[313932793,1707837485309,-1144.96176878,0.00043392,30]
[313932794,1707837485337,-250383.32716181,0.00043393,30]
[313932795,1707837485360,-3488.15490041,0.000434,30]
[313932796,1707837485384,-2967.38355703,0.000434,120]
[313932797,1707837485410,-24000.0,0.0004344,120]
[313932798,1707837485435,-1000.0,0.00043499,120]
[313932799,1707837485460,-210.0,0.000435,30]
[313932800,1707837485485,-25732.41923176,0.000435,30]
[313932801,1707837485513,-300.0,0.000435,43]
[313932802,1707837485535,-2326.0,0.000435,120]
[313932803,1707837485563,-12769.0,0.000435,30]
[313932804,1707837485586,-10000.0,0.000435,30]
[313932805,1707837485610,-24000.0,0.000435,120]
[313932806,1707837485634,-24000.0,0.0004356,120]
[313932807,1707837485658,-5000.0,0.00043564,60]
[313932808,1707837485810,-2777.0,0.00043595,30]
[313932809,1707837485836,-2777.0,0.00043595,60]
[313932810,1707837485860,-24000.0,0.0004362,120]
[313932811,1707837485885,-29824.4498024,0.0004364,30]
[313932812,1707837485908,-24000.0,0.0004368,120]